bitfinex/quotes_SOLUSD_20251124
["timestamp","ask_amount","ask_price","bid_price","bid_amount"]
[1764007416434,7.32848531,137.42,137.4,0.2]
[1764007416798,8.04848531,137.41,137.4,0.2]
[1764007417022,15.32597603,137.41,137.4,0.2]
[1764007417409,0.72,137.4,137.31,16.33843023]
[1764007417726,7.32848531,137.37,137.32,57.97208266]
[1764007417932,7.32848531,137.36,137.32,7.97208266]
[1764007418113,7.32848531,137.35,137.32,7.97208266]
[1764007418301,7.32848531,137.36,137.32,7.97208266]
[1764007418725,12.81980561,137.36,137.32,7.97208266]
[1764007420030,12.81980561,137.36,137.32,76.17773369]
[1764007420235,12.81980561,137.41,137.35,12.81980561]
[1764007420405,12.81980561,137.44,137.39,12.81980561]
[1764007420730,12.81980561,137.44,137.4,3.3]
[1764007420928,0.72,137.43,137.36,0.69]
[1764007421225,12.81980561,137.41,137.37,0.69]
[1764007421428,0.72,137.43,137.37,50.69]
[1764007421727,12.81980561,137.42,137.37,50.69]
[1764007421912,12.81980561,137.42,137.37,0.69]
[1764007422228,13.53980561,137.42,137.37,0.69]
[1764007422537,13.53980561,137.42,137.37,13.50980561]
[1764007422538,12.81980561,137.41,137.37,13.50980561]
[1764007422716,0.72,137.42,137.38,12.81980561]
[1764007423034,13.53980561,137.42,137.39,3.3]
[1764007423400,12.81980561,137.41,137.39,3.3]
[1764007423931,0.72,137.42,137.39,10.57845436]
[1764007423932,13.53980561,137.42,137.39,10.57845436]
[1764007424230,12.81980561,137.42,137.39,10.57845436]
[1764007424730,12.81980561,137.41,137.39,10.57845436]
[1764007425105,13.53980561,137.4,137.33,7.28173013]
[1764007425309,12.81980561,137.36,137.34,3.3]
[1764007425720,25.47127923,137.41,137.34,3.3]
[1764007425919,12.81980561,137.37,137.34,3.3]
[1764007426226,0.72,137.4,137.34,3.3]
[1764007426227,12.81980561,137.36,137.34,3.3]
[1764007427040,12.81980561,137.37,137.34,10.58088542]
[1764007427624,12.81980561,137.36,137.34,10.58088542]
[1764007428128,12.81980561,137.38,137.34,79.43388527]
[1764007428436,12.81980561,137.39,137.35,0.65]
[1764007429027,12.81980561,137.4,137.36,88.30029482]
[1764007429220,0.72,137.41,137.36,88.30029482]
[1764007429221,12.81980561,137.41,137.37,3.3]
[1764007429420,0.72,137.43,137.37,3.3]
[1764007429421,12.81980561,137.4,137.37,3.3]
[1764007430239,3.3,137.46,137.35,62.81980561]
[1764007430240,12.81980561,137.38,137.35,7.28046253]
[1764007430435,17.028864,137.45,137.36,3.95]
[1764007430639,0.72,137.44,137.37,12.81980561]
[1764007430833,12.81980561,137.42,137.37,63.46980561]
[1764007431226,12.81980561,137.41,137.38,7.27907992]
[1764007431426,12.81980561,137.41,137.39,3.3]
[1764007431856,12.81980561,137.4,137.39,3.3]
[1764007432156,0.72,137.44,137.37,50.65]
[1764007432323,12.81980561,137.42,137.39,3.3]
[1764007432521,12.81980561,137.41,137.39,3.3]
[1764007433041,13.51980561,137.4,137.39,3.3]
[1764007433434,12.81980561,137.4,137.39,3.3]
[1764007433658,20.09782598,137.4,137.39,3.3]
[1764007433847,12.81980561,137.4,137.39,3.3]
[1764007434066,20.09782598,137.4,137.35,0.65]
[1764007434250,12.81980561,137.37,137.36,3.3]
[1764007434721,13.51980561,137.37,137.36,3.3]
[1764007434920,12.81980561,137.38,137.36,3.3]
[1764007435125,12.81980561,137.39,137.36,3.3]
[1764007435338,12.81980561,137.39,137.36,10.58010875]
[1764007435751,12.81980561,137.37,137.36,3.3]
[1764007436333,12.81980561,137.38,137.36,3.3]
[1764007436657,0.7,137.37,137.31,0.2]
[1764007436859,12.81980561,137.33,137.31,3.5]
[1764007437046,12.81980561,137.32,137.31,3.5]
[1764007437366,20.10206602,137.32,137.31,0.2]
[1764007437572,12.81980561,137.32,137.31,0.2]
[1764007438153,13.51980561,137.32,137.31,0.2]
[1764007439135,7.98226041,137.32,137.31,0.2]
[1764007439334,20.80206602,137.32,137.31,0.2]
[1764007440271,0.7,137.34,137.31,0.2]
[1764007440569,12.81980561,137.33,137.31,0.2]
[1764007440738,12.81980561,137.33,137.31,7.48269499]
[1764007441060,12.81980561,137.37,137.32,66.76980561]
[1764007441368,12.81980561,137.4,137.32,66.308864]
[1764007441566,12.81980561,137.33,137.32,19.608864]
[1764007441738,12.81980561,137.33,137.31,0.2]
[1764007441942,13.51980561,137.32,137.31,0.2]
[1764007443238,20.80206602,137.32,137.31,0.2]
[1764007445140,32.91201094,137.32,137.31,0.2]
[1764007446786,0.7,137.32,137.31,0.2]
[1764007446950,18.20420476,137.34,137.31,0.2]
[1764007446951,0.7,137.34,137.31,0.2]
[1764007447143,20.80206602,137.32,137.31,0.2]
[1764007447341,8.80994492,137.31,137.24,0.65]
[1764007447565,12.81980561,137.25,137.24,0.65]
[1764007447879,12.81980561,137.25,137.22,11.23751119]
[1764007448052,12.81980561,137.26,137.23,0.65]
[1764007448250,0.7,137.3,137.23,0.65]
[1764007448251,12.81980561,137.28,137.23,50.65]
[1764007448552,7.9818702,137.33,137.25,62.81980561]
[1764007448750,12.81980561,137.31,137.26,16.76980561]
[1764007448965,12.81980561,137.31,137.26,3.95]
[1764007449163,12.81980561,137.3,137.27,0.65]
[1764007449552,0.7,137.37,137.29,21.62975053]
[1764007449753,12.81980561,137.35,137.3,53.95]
[1764007450054,12.81980561,137.31,137.27,11.23475292]
[1764007450377,12.81980561,137.29,137.27,3.95]
[1764007450560,12.81980561,137.28,137.27,3.3]
[1764007451966,12.81980561,137.3,137.27,11.23487236]
[1764007452171,23.5907152,137.33,137.27,11.23487236]
[1764007452356,0.7,137.36,137.29,12.81980561]
[1764007452669,12.81980561,137.32,137.28,0.65]
[1764007452858,12.81980561,137.33,137.29,0.65]
[1764007453060,12.81980561,137.3,137.27,3.95]
[1764007453372,12.81980561,137.3,137.27,11.23488166]
[1764007453750,12.81980561,137.29,137.27,3.95]
[1764007454153,12.81980561,137.28,137.25,16.308864]
[1764007454353,12.81980561,137.27,137.25,26.89462103]
[1764007454871,34.99971259,137.31,137.25,11.23575703]
[1764007455175,12.81980561,137.27,137.25,11.23575703]
[1764007455469,12.81980561,137.26,137.25,3.3]
[1764007455672,12.81980561,137.27,137.25,10.58597449]
[1764007455875,7.9840522,137.29,137.25,10.58597449]
[1764007456078,0.7,137.29,137.25,3.3]
[1764007456249,7.28354086,137.3,137.25,11.23589467]
[1764007456453,12.81980561,137.28,137.25,11.23589467]
[1764007456863,7.98354086,137.3,137.25,11.23589467]
[1764007457050,12.81980561,137.28,137.25,3.95]
[1764007457361,12.81980561,137.27,137.25,11.23580994]
[1764007457554,12.81980561,137.26,137.25,3.3]
[1764007458070,0.7,137.28,137.25,3.3]
[1764007458248,12.81980561,137.27,137.25,3.3]
[1764007458671,12.81980561,137.26,137.25,3.3]
[1764007459064,7.28388796,137.29,137.25,3.3]
[1764007459270,12.81980561,137.26,137.25,3.3]
[1764007459478,12.81980561,137.3,137.26,0.65]
[1764007459665,12.81980561,137.31,137.26,63.46980561]
[1764007459977,12.81980561,137.31,137.26,0.65]
[1764007460177,12.81980561,137.31,137.27,0.65]
[1764007460372,12.81980561,137.31,137.28,3.3]
[1764007460777,12.81980561,137.29,137.28,3.3]
[1764007460980,12.81980561,137.29,137.25,3.3]
[1764007461219,12.81980561,137.26,137.25,3.3]
[1764007462348,7.28456106,137.28,137.25,3.95]
[1764007462554,12.81980561,137.28,137.26,0.65]
[1764007462785,12.81980561,137.29,137.26,0.65]
[1764007462979,12.81980561,137.3,137.26,0.65]
[1764007463373,12.81980561,137.29,137.26,7.93510788]
[1764007463758,12.81980561,137.29,137.27,0.72]
[1764007463962,12.81980561,137.29,137.28,3.3]
[1764007464294,12.81980561,137.29,137.25,7.28575542]
[1764007464600,12.81980561,137.26,137.25,3.3]
[1764007465375,12.81980561,137.27,137.25,3.3]
[1764007465601,12.81980561,137.28,137.26,0.72]
[1764007466164,0.67,137.3,137.25,3.3]
[1764007466369,0.67,137.3,137.25,10.58596396]
[1764007466370,12.81980561,137.27,137.25,10.58596396]
[1764007466696,12.81980561,137.27,137.25,11.30596396]
[1764007467005,12.81980561,137.28,137.26,0.72]
[1764007467888,12.81980561,137.28,137.26,8.00525266]
[1764007468605,12.81980561,137.3,137.27,0.72]
[1764007468770,8.80994492,137.35,137.28,3.3]
[1764007468969,12.81980561,137.33,137.28,3.3]
[1764007469294,12.81980561,137.34,137.29,0.72]
[1764007469593,12.81980561,137.34,137.3,7.28332119]
[1764007469765,12.81980561,137.34,137.31,3.3]
[1764007469967,12.81980561,137.34,137.31,4.02]
[1764007470165,0.67,137.36,137.31,4.02]
[1764007470386,12.81980561,137.34,137.31,4.02]
[1764007470577,12.81980561,137.35,137.32,0.72]
[1764007470776,0.67,137.41,137.32,63.53980561]
[1764007470978,2.09999999,137.47,137.35,62.81980561]
[1764007470979,0.67,137.44,137.35,62.81980561]
[1764007471186,12.81980561,137.43,137.37,12.81980561]
[1764007471413,12.81980561,137.43,137.39,25.47492539]
[1764007471581,12.81980561,137.41,137.4,3.3]
[1764007474783,0.67,137.45,137.39,3.3]
[1764007475010,12.81980561,137.42,137.39,3.3]
[1764007475501,12.81980561,137.42,137.4,7.27802037]
[1764007475707,30.39661951,137.47,137.4,7.27802037]
[1764007475708,0.1,137.47,137.4,25.47307131]
[1764007476002,12.81980561,137.46,137.41,50.0]
[1764007476243,0.77,137.47,137.42,3.28]
[1764007476379,12.81980561,137.44,137.42,3.28]
[1764007476800,12.81980561,137.43,137.42,3.28]
[1764007477400,12.81980561,137.43,137.42,2.78]
[1764007477604,0.67,137.46,137.42,10.05696114]
[1764007477899,12.81980561,137.45,137.42,10.05696114]
[1764007478113,12.81980561,137.44,137.42,2.78]
[1764007478479,12.81980561,137.43,137.42,2.78]
[1764007478898,12.81980561,137.44,137.42,2.78]
[1764007479092,12.81980561,137.43,137.4,10.55799212]
[1764007479292,12.81980561,137.41,137.4,3.28]
[1764007479686,13.48980561,137.41,137.4,3.28]
[1764007480023,20.76729633,137.41,137.38,3.28]
[1764007480194,12.81980561,137.39,137.38,3.28]
[1764007480574,7.35919765,137.39,137.38,3.28]
[1764007480778,7.35919765,137.4,137.38,3.28]
[1764007481393,7.35919765,137.39,137.38,3.28]
[1764007482478,7.35919765,137.42,137.38,3.78]
[1764007482673,0.67,137.44,137.38,3.78]
[1764007482674,7.35919765,137.44,137.39,0.5]
[1764007482875,7.35919765,137.44,137.39,7.85919765]
[1764007483183,7.35919765,137.42,137.39,0.5]
[1764007483383,7.35919765,137.42,137.38,3.28]
[1764007483590,0.67,137.44,137.39,7.27855011]
[1764007483591,7.35919765,137.41,137.39,7.27855011]
[1764007485710,7.35919765,137.43,137.4,0.5]
[1764007485909,0.1,137.47,137.41,3.28]
[1764007486084,7.35919765,137.46,137.41,3.28]
[1764007486281,7.35919765,137.43,137.41,3.28]
[1764007486882,0.67,137.45,137.41,3.28]
[1764007487084,7.35919765,137.43,137.41,3.28]
[1764007487498,7.35919765,137.42,137.41,3.28]
[1764007488116,8.05919765,137.42,137.41,3.28]
[1764007489211,8.05919765,137.42,137.39,3.28]
[1764007489515,7.35919765,137.4,137.39,3.28]
[1764007490699,15.33721802,137.4,137.37,3.28]
[1764007490989,7.35919765,137.4,137.37,3.28]
[1764007491202,7.35919765,137.39,137.37,3.28]
[1764007491597,7.35919765,137.38,137.37,10.55938972]
[1764007491798,8.05919765,137.38,137.37,3.28]
[1764007492395,8.05919765,137.38,137.34,7.28100409]
[1764007492602,7.35919765,137.36,137.35,3.28]
[1764007493702,7.35919765,137.36,137.35,10.56066982]
[1764007494520,7.94891301,137.39,137.35,10.56066982]
[1764007494719,7.35919765,137.36,137.35,10.56066982]
[1764007495615,7.35919765,137.36,137.35,3.28]
[1764007495818,7.35919765,137.36,137.35,10.56066982]
[1764007496018,7.27696114,137.42,137.36,50.0]
[1764007496198,7.35919765,137.4,137.36,50.5]
[1764007496603,7.27696114,137.42,137.36,50.5]
[1764007496802,7.35919765,137.41,137.36,50.5]
[1764007497120,7.35919765,137.37,137.35,19.588864]
[1764007497329,7.35919765,137.36,137.3,57.28299791]
[1764007497538,7.35919765,137.33,137.31,3.28]
[1764007497893,7.35919765,137.33,137.31,10.56263467]
[1764007498099,7.95046222,137.36,137.31,10.56263467]
[1764007498332,7.28046222,137.36,137.31,10.56263467]
[1764007498499,7.35919765,137.33,137.31,10.56263467]
[1764007499048,0.67,137.35,137.31,10.56263467]
[1764007499258,7.35919765,137.33,137.31,10.56263467]
[1764007500035,0.67,137.35,137.31,10.56263467]
[1764007500272,0.67,137.37,137.31,11.06263467]
[1764007500458,0.67,137.37,137.31,10.56263467]
[1764007500459,7.35919765,137.33,137.31,10.56263467]
[1764007500777,7.35919765,137.32,137.29,0.5]
[1764007501070,7.35919765,137.33,137.31,3.28]
[1764007501378,0.67,137.41,137.34,66.308864]
[1764007501533,7.35919765,137.4,137.35,3.28]
[1764007501870,7.35919765,137.4,137.36,7.28013977]
[1764007502028,0.67,137.4,137.36,7.28013977]
[1764007502344,7.35919765,137.39,137.36,7.28013977]
[1764007502537,0.67,137.42,137.36,25.98048921]
[1764007502737,0.67,137.45,137.37,57.85919765]
[1764007503041,7.35919765,137.43,137.39,50.0]
[1764007503557,7.35919765,137.43,137.39,50.5]
[1764007503759,7.35919765,137.43,137.4,7.27802037]
[1764007503961,7.35919765,137.43,137.41,3.28]
[1764007504558,7.35919765,137.44,137.41,3.28]
[1764007505353,7.35919765,137.43,137.41,3.28]
[1764007506354,8.80994492,137.41,137.3,0.5]
[1764007506551,8.80994492,137.41,137.32,0.5]
[1764007506738,7.35919765,137.36,137.32,50.0]
[1764007507060,7.35919765,137.33,137.27,0.2]
[1764007507229,7.35919765,137.28,137.27,3.48]
[1764007507433,7.35919765,137.3,137.27,3.48]
[1764007507659,7.35919765,137.31,137.27,3.48]
[1764007507962,16.308864,137.35,137.27,3.48]
[1764007507963,0.67,137.35,137.28,57.85919765]
[1764007508137,0.67,137.35,137.3,50.0]
[1764007508138,7.35919765,137.33,137.3,50.0]
[1764007508340,7.35919765,137.34,137.31,3.28]
[1764007509062,7.35919765,137.32,137.31,3.28]
[1764007509236,7.35919765,137.32,137.27,0.2]
[1764007509434,7.35919765,137.28,137.27,0.2]
[1764007509658,0.67,137.34,137.28,7.28438228]
[1764007509862,0.67,137.35,137.3,7.28332119]
[1764007510082,7.35919765,137.34,137.3,57.28332119]
[1764007510367,7.35919765,137.33,137.3,7.28332119]
[1764007510536,7.35919765,137.34,137.3,57.28332119]
[1764007510873,7.35919765,137.34,137.3,57.78332119]
[1764007511557,0.67,137.37,137.31,0.5]
[1764007511769,7.35919765,137.36,137.32,3.3]
[1764007511966,0.67,137.37,137.32,60.58190918]
[1764007511967,7.35919765,137.37,137.32,60.58190918]
[1764007512149,7.35919765,137.37,137.32,61.08190918]
[1764007512336,7.35919765,137.37,137.32,67.94110683]
[1764007512540,7.35919765,137.35,137.32,10.58190918]
[1764007512968,7.35919765,137.36,137.32,10.58190918]
[1764007513140,7.35919765,137.36,137.32,11.08190918]
[1764007513467,7.35919765,137.35,137.32,10.58190918]
[1764007514079,7.28069582,137.35,137.27,50.2]
[1764007514281,0.67,137.34,137.28,3.3]
[1764007514447,7.35919765,137.3,137.28,3.3]
[1764007515145,7.35919765,137.35,137.3,66.308864]
[1764007515345,7.35919765,137.35,137.31,3.8]
[1764007515541,7.35919765,137.34,137.31,3.8]
[1764007515958,7.35919765,137.36,137.33,50.0]
[1764007516250,7.35919765,137.35,137.34,3.3]
[1764007517255,8.02919765,137.35,137.34,3.3]
[1764007517600,16.308864,137.32,137.25,0.5]
[1764007517756,16.308864,137.33,137.26,3.3]
[1764007517964,7.35919765,137.29,137.27,57.98491294]
[1764007518176,16.978864,137.33,137.28,0.5]
[1764007518363,7.35919765,137.3,137.29,3.3]
[1764007522463,15.31251884,137.3,137.27,3.5]
[1764007522664,7.35919765,137.28,137.27,3.5]
[1764007523067,8.05919765,137.28,137.27,3.5]
[1764007523272,7.35919765,137.28,137.27,3.5]
[1764007523656,0.7,137.32,137.27,11.28471509]
[1764007523895,7.35919765,137.29,137.27,11.28471509]
[1764007524401,7.35919765,137.29,137.27,29.49699745]
[1764007524582,0.7,137.32,137.27,29.49699745]
[1764007524974,7.35919765,137.29,137.27,29.49699745]
[1764007525174,7.9822727,137.32,137.27,28.99699745]
[1764007525393,7.35919765,137.3,137.27,28.99699745]
[1764007525605,17.008864,137.35,137.29,50.0]
[1764007525807,0.7,137.37,137.3,3.78]
[1764007526013,7.35919765,137.34,137.3,3.78]
[1764007526467,7.35919765,137.36,137.31,99.65782932]
[1764007526893,7.35919765,137.36,137.33,50.0]
[1764007527105,7.35919765,137.35,137.34,3.28]
[1764007527510,7.35919765,137.37,137.34,53.78]
[1764007527714,7.35919765,137.38,137.34,53.78]
[1764007528595,7.35919765,137.35,137.34,3.28]
[1764007529913,7.35919765,137.35,137.34,10.56119994]
[1764007530803,0.7,137.37,137.34,10.56119994]
[1764007531006,7.35919765,137.36,137.34,10.56119994]
[1764007531312,7.35919765,137.35,137.34,3.28]
[1764007531712,8.05919765,137.35,137.34,3.28]
[1764007532320,8.05919765,137.35,137.32,3.28]
[1764007532627,7.35919765,137.33,137.32,3.28]
[1764007533017,0.7,137.34,137.32,3.28]
[1764007533188,7.35919765,137.33,137.32,3.28]
[1764007533901,0.7,137.33,137.32,3.28]
[1764007534216,0.7,137.35,137.31,3.28]
[1764007534522,7.35919765,137.33,137.31,3.28]
[1764007534712,7.35919765,137.33,137.32,7.28226041]
[1764007535524,7.35919765,137.34,137.32,7.28226041]
[1764007535698,7.35919765,137.35,137.32,7.28226041]
[1764007536298,7.35919765,137.34,137.31,10.56276914]
[1764007536822,7.35919765,137.34,137.31,11.06276914]
[1764007537020,0.7,137.37,137.31,60.56276914]
[1764007537193,16.308864,137.38,137.31,60.56276914]
[1764007537194,7.35919765,137.38,137.34,66.308864]
[1764007537399,7.35919765,137.38,137.35,3.28]
[1764007538124,0.7,137.4,137.35,3.78]
[1764007538327,7.35919765,137.38,137.35,3.78]
[1764007538504,7.35919765,137.38,137.35,3.28]
[1764007538711,7.35919765,137.38,137.36,7.28013977]
[1764007539130,34.50083425,137.43,137.37,50.5]
[1764007539131,0.7,137.43,137.37,50.5]
[1764007539326,0.7,137.43,137.38,12.08994492]
[1764007539633,7.35919765,137.42,137.38,12.08994492]
[1764007540018,7.35919765,137.4,137.38,3.28]
[1764007540205,0.7,137.41,137.38,3.28]
[1764007540206,7.35919765,137.39,137.38,3.28]
[1764007541325,7.35919765,137.4,137.38,10.55907992]
[1764007541514,7.35919765,137.41,137.38,10.55907992]
[1764007542430,7.35919765,137.41,137.38,28.75677973]
[1764007542640,12.80818016,137.42,137.38,29.25677973]
[1764007542934,12.80818016,137.41,137.38,29.25677973]
[1764007543111,0.7,137.43,137.38,29.25677973]
[1764007543312,0.7,137.46,137.39,50.5]
[1764007543627,12.80818016,137.43,137.4,3.28]
[1764007544245,12.80818016,137.42,137.4,3.28]
[1764007544744,12.80818016,137.44,137.4,45.56167509]
[1764007545338,12.80818016,137.43,137.4,19.588864]
[1764007545514,12.80818016,137.41,137.4,3.28]
[1764007546512,12.80818016,137.42,137.4,3.28]
[1764007546719,12.80818016,137.42,137.4,10.55777989]
[1764007548324,0.7,137.44,137.4,60.55777989]
[1764007548526,12.80818016,137.43,137.4,60.55777989]
[1764007548825,12.80818016,137.43,137.4,61.05777989]
[1764007549342,12.80818016,137.43,137.4,60.55777989]
[1764007549851,7.96545486,137.45,137.4,60.55777989]
[1764007550023,0.79,137.47,137.41,0.5]
[1764007550340,12.80818016,137.44,137.41,0.5]
[1764007550941,7.37433018,137.47,137.4,78.75283083]
[1764007550942,12.80818016,137.43,137.4,78.75283083]
[1764007551316,0.69,137.46,137.4,79.25283083]
[1764007551516,12.80818016,137.44,137.4,79.25283083]
[1764007551950,12.80818016,137.43,137.4,78.75283083]
[1764007552347,12.80818016,137.43,137.4,79.25283083]
[1764007552523,12.80818016,137.44,137.4,79.25283083]
[1764007553031,12.80818016,137.43,137.4,79.25283083]
[1764007553241,12.80818016,137.42,137.4,28.75283083]
[1764007553417,7.27650103,137.43,137.4,3.28]
[1764007553626,12.80818016,137.41,137.4,3.28]
[1764007554133,13.45818016,137.41,137.4,3.28]
[1764007554722,0.65,137.41,137.4,3.28]
[1764007554924,13.45818016,137.41,137.38,7.27897256]
[1764007555174,12.80818016,137.44,137.4,7.27802037]
[1764007555359,0.1,137.47,137.41,50.0]
[1764007555551,12.80818016,137.46,137.42,3.28]
[1764007555737,12.80818016,137.46,137.43,50.0]
[1764007556047,0.1,137.47,137.46,16.308864]
[1764007556248,0.1,137.47,137.46,32.39704416]
[1764007556423,0.65,137.53,137.46,32.39704416]
[1764007556424,12.80818016,137.52,137.47,50.0]
[1764007556619,12.80818016,137.52,137.47,50.5]
[1764007556847,12.80818016,137.52,137.48,0.5]
[1764007557047,12.80818016,137.53,137.49,53.28]
[1764007557227,0.1,137.55,137.51,50.0]
[1764007557433,12.90818016,137.55,137.52,3.28]
[1764007557947,0.1,137.55,137.54,16.308864]
[1764007558139,0.1,137.55,137.54,20.088864]
[1764007558327,0.1,137.55,137.54,19.588864]
[1764007558927,0.1,137.55,137.54,20.088864]
[1764007559127,0.1,137.55,137.54,27.35947618]
[1764007559346,0.1,137.55,137.54,36.1694211]
[1764007559547,1e-08,137.55,137.54,48.97760126]
[1764007560340,1e-08,137.55,137.54,36.1694211]
[1764007560541,1e-08,137.55,137.54,48.97760126]
[1764007561154,0.1,137.6,137.59,50.0]
[1764007561454,13.55818016,137.6,137.59,3.28]
[1764007562556,13.55818016,137.6,137.55,16.308864]
[1764007562861,0.65,137.59,137.56,3.28]
[1764007563066,0.65,137.59,137.51,77.48996754]
[1764007563067,0.65,137.59,137.5,50.0]
[1764007563255,7.26849832,137.58,137.51,3.28]
[1764007563452,7.26849832,137.58,137.53,16.308864]
[1764007563759,0.65,137.57,137.54,3.28]
[1764007563930,0.75,137.6,137.55,66.308864]
[1764007564136,12.80818016,137.59,137.55,66.308864]
[1764007564335,12.80818016,137.58,137.55,66.308864]
[1764007565672,8.01764112,137.6,137.57,50.0]
[1764007565673,12.80818016,137.59,137.57,50.0]
[1764007565869,12.80818016,137.59,137.58,3.28]
[1764007566969,13.45818016,137.59,137.58,3.28]
[1764007567438,20.72615021,137.59,137.58,3.28]
[1764007567639,20.72615021,137.59,137.56,3.28]
[1764007567847,12.80818016,137.57,137.56,3.28]
[1764007568266,13.45818016,137.57,137.56,3.28]
[1764007568565,12.80818016,137.57,137.54,3.28]
[1764007568772,0.1,137.6,137.56,16.308864]
[1764007569067,0.1,137.6,137.59,79.11704416]
[1764007569236,0.1,137.6,137.59,19.588864]
[1764007569569,0.1,137.6,137.59,10.54797005]
[1764007569740,0.1,137.6,137.59,11.04797005]
[1764007569941,0.1,137.6,137.59,32.66609513]
[1764007570558,12.80818016,137.66,137.62,66.308864]
[1764007570733,12.80818016,137.64,137.63,3.28]
[1764007571365,7.26321905,137.68,137.63,10.5457974]
[1764007571541,12.80818016,137.66,137.63,10.5457974]
[1764007571857,12.80818016,137.64,137.63,3.28]
[1764007572263,13.45818016,137.64,137.63,3.28]
[1764007572763,0.65,137.64,137.63,3.28]
[1764007572970,0.65,137.68,137.63,3.28]
[1764007573273,12.80818016,137.65,137.63,3.28]
[1764007573444,12.80818016,137.65,137.63,10.54585773]
[1764007574680,12.80818016,137.66,137.63,11.04585773]
[1764007574867,12.80818016,137.66,137.63,29.21050206]
[1764007575181,0.65,137.7,137.63,29.21050206]
[1764007575474,12.80818016,137.67,137.63,29.21050206]
[1764007575992,12.80818016,137.68,137.64,50.5]
[1764007576164,12.80818016,137.69,137.65,0.5]
[1764007576363,12.80818016,137.69,137.66,3.28]
[1764007576687,12.80818016,137.67,137.66,19.588864]
[1764007577059,13.45818016,137.67,137.66,3.28]
[1764007577559,20.7219268,137.67,137.66,3.28]
[1764007577765,13.45818016,137.67,137.66,3.28]
[1764007577975,20.722004,137.67,137.66,3.28]
[1764007578357,13.45818016,137.67,137.66,3.28]
[1764007579270,12.80818016,137.67,137.66,3.28]
[1764007580172,13.45818016,137.67,137.66,3.28]
[1764007580488,20.7219268,137.67,137.66,3.28]
[1764007581078,20.7219268,137.67,137.59,50.0]
[1764007581279,12.80818016,137.61,137.6,7.26744186]
[1764007581492,12.80818016,137.61,137.6,10.54744186]
[1764007581777,13.45818016,137.61,137.55,50.0]
[1764007581979,13.45818016,137.61,137.49,24.2566177]
[1764007581980,12.80818016,137.56,137.53,50.0]
[1764007582182,13.45818016,137.6,137.47,0.5]
[1764007582183,12.80818016,137.54,137.47,0.5]
[1764007582358,12.80818016,137.48,137.44,7.27590221]
[1764007582553,12.80818016,137.48,137.45,3.28]
[1764007582754,12.80818016,137.47,137.45,3.28]
[1764007582959,12.80818016,137.46,137.45,3.28]
[1764007583268,13.50818016,137.46,137.45,3.28]
[1764007584161,12.80818016,137.47,137.45,3.28]
[1764007584475,0.7,137.51,137.45,60.55537286]
[1764007584671,16.308864,137.55,137.45,60.55537286]
[1764007584672,12.80818016,137.46,137.45,3.28]
[1764007584862,12.80818016,137.46,137.45,10.55537286]
[1764007585364,12.80818016,137.47,137.45,10.55537286]
[1764007585679,12.80818016,137.46,137.44,3.28]
[1764007585881,12.80818016,137.45,137.44,3.28]
[1764007586380,13.50818016,137.45,137.42,3.28]
[1764007586571,12.80818016,137.43,137.42,3.28]
[1764007586967,12.80818016,137.44,137.42,3.28]
[1764007587478,12.80818016,137.44,137.43,7.27643163]
[1764007587675,61.47803358,137.52,137.43,57.27643163]
[1764007587676,12.80818016,137.46,137.43,57.27643163]
[1764007587875,34.66371507,137.6,137.43,57.27643163]
[1764007587876,12.80818016,137.48,137.45,50.0]
[1764007588069,12.80818016,137.47,137.46,3.28]
[1764007588467,12.80818016,137.48,137.46,3.28]
[1764007588997,0.7,137.49,137.46,3.28]
[1764007588998,12.80818016,137.49,137.46,3.28]
[1764007589488,12.80818016,137.48,137.46,3.28]
[1764007590076,12.80818016,137.47,137.46,3.28]
[1764007590278,12.80818016,137.47,137.46,10.55484359]
[1764007590590,12.80818016,137.48,137.46,10.55484359]